[Event "45th FIDE Womens Olympiad 2024"]
[Site "Budapest"]
[Date "2024.09.15"]
[Round "5.127"]
[White "Lesbekova, Assel"]
[Black "Guindy, Esmat Susanne"]
[Result "1-0"]
[ECO "C11"]
[WhiteElo "1903"]
[BlackElo "2015"]
[Annotator "TA"]
[PlyCount "121"]
[EventDate "2024.09.05"]
[EventType "team-tourn"]
[EventCountry "HUN"]
[SourceTitle "playchess.com"]
[Source "ChessBase"]
[SourceQuality "1"]
[WhiteTeam "Kyrgyzstan"]
[BlackTeam "Denmark"]
[WhiteTeamCountry "KGZ"]
[BlackTeamCountry "DEN"]
[TimeControl "40/5400+30:1800+30"]

{[%evp 9,121,0,0,0,0,-36,-27,-61,95,84,75,69,58,71,63,14,38,-7,0,-26,-27,-37,-14,-11,0,-40,-42,-43,-41,-38,-16,-20,-27,-33,-25,-21,0,0,0,-7,-4,-7,-9,-17,-11,0,-21,-26,-11,-22,-15,-62,-7,-33,-5,-8,8,0,0,0,252,231,372,362,381,377,534,538,822,795,1013,0,0,0,0,-511,1624,1400,1432,1482,1998,1967,1805,1439,29965,29968,29963,29970,29976,29977,29977,29978,29978,29981,29981,29982,29984,29985,29985,29986,29987,29988,29990,29989,29989,29990,29990,29991,29991,29992,29992,29992,29996,29994]} 1. e4 e6 2. d4 d5 3. Nc3 Nf6 4. Qd3 c5 5. exd5 Nxd5 6. dxc5 Bxc5 7. Ne4 {aiming for Qb5+.} Be7 8. Qg3 {Black has an edge.} O-O {[#]} (8... Nb4 $1 $15 {stays ahead.} 9. Bd3 Nxd3+ 10. cxd3 O-O) 9. Bh6 $1 $16 {[%csl Gh6][%cal Rg3g7]} Bf6 10. O-O-O Nd7 11. h4 Kh8 12. Bg5 {White has more active pieces.} (12. Nxf6 $14 Qxf6 13. Bg5) 12... Qb6 13. Nxf6 N7xf6 14. Nh3 Bd7 $1 15. Qb3 Qxb3 16. axb3 Bc6 17. c4 Nb4 18. Bd2 a5 19. f3 {Repels Ne4} Nh5 {[%cal Bf6h5,Bh5g3,Bg3f5,Bf5h4][%mdl 32]} 20. Bxb4 axb4 21. Bd3 Ng3 22. Rhe1 Rfd8 23. Nf2 g6 24. Bb1 Kg7 25. Nd3 Nf5 26. Nxb4 Nxh4 27. Rxd8 Rxd8 28. Nxc6 bxc6 $11 {[%mdl 4096] Endgame. KRB-KRN} 29. Re2 Kf6 30. c5 (30. Be4 $11) 30... Nf5 (30... h5 $15) 31. Bxf5 Kxf5 {KR-KR} 32. Kc2 e5 33. Kc3 h5 {...Kf4 would now be deadly.} 34. b4 {[%cal Ob4b5] Black must now prevent b5!} Ke6 $2 {[%mdl 8192] [#]} (34... Rb8 $11 {and Black stays safe.}) 35. b5 $1 $18 cxb5 (35... Rd5 $142) 36. Kb4 Rb8 37. Rd2 g5 (37... f5 $142 38. c6 (38. Rd6+ Kf7 $18) 38... e4) 38. c6 {[%cal Bc5c6,Bc6c7][%mdl 32]} f5 39. Kc5 e4 40. b4 $2 (40. fxe4 $18 fxe4 41. c7) 40... e3 $11 41. Re2 f4 {And now ...h4 would win.} 42. Rc2 $2 {[%mdl 8192]} (42. Re1 $11 {and White has nothing to worry.}) 42... Ke5 $4 {[%mdl 8192]} (42... h4 $19 43. c7 Rh8 44. Kxb5 g4) 43. c7 $18 Rc8 44. Kxb5 Kd4 45. Kc6 Kd3 46. Rc1 {White threatens b5 and mate.} Kd2 47. Ra1 {White mates.} e2 48. b5 e1=Q 49. Rxe1 Kxe1 {KR-KP} 50. b6 Kf2 51. b7 Rxc7+ 52. Kxc7 Kxg2 53. b8=Q (53. b8=B h4 (53... Kxf3 $2 54. Kd7 $19) 54. Kc6 h3 (54... Kxf3 55. Kd7 h3 56. Ke6 h2 57. Kf7 h1=Q 58. Ke6 Ke2 59. Be5 f3 60. Bd4 g4 61. Kf7 g3 62. Bg7 f2 63. Bf6 f1=Q 64. Kg7 Qh5 65. Kg8 Qg6+ 66. Bg7 Qff7+ 67. Kh8 Qgxg7#) 55. Bd6 Kxf3 (55... h2 {gets mated.} 56. Kd7 Kxf3 57. Ke6 h1=Q 58. Kf6 Kg4 59. Ke5 Qc6 60. Bb8 Qb5+ 61. Ke4 Qxb8 62. Kd4 f3 63. Kd3 f2 64. Ke2 Qf4 65. Kd3 f1=Q+ 66. Kc3 Q1c1+ 67. Kd3 Qfe3#) 56. Be5 g4 (56... h2 {leads to mate.} 57. Bh8 g4 58. Be5 g3 59. Bc3 Kg4 60. Bf6 h1=Q+ 61. Kd7 f3 62. Kc7 f2 63. Bb2 f1=Q 64. Ba3 Qf7+ 65. Kb6 Qhb7+ 66. Ka5 Qfd7 67. Bf8 Qdb5#) 57. Bg7 g3 58. Bf8 h2 59. Ba3 Kg4 (59... h1=R 60. Kb7 g2 61. Bc5 Rc1 62. Bd4 Ke2 63. Kb8 f3 64. Ka7 f2 65. Kb8 f1=Q 66. Kb7 g1=Q 67. Bb6 Qfg2+ 68. Ka7 Ra1+ 69. Kb8 Qxb6+ 70. Kc8 Qh3#) 60. Bd6 f3 (60... h1=R 61. Be5 f3 62. Bg7 f2 63. Bf8 g2 64. Bd6 f1=Q 65. Be5 Qa6+ 66. Kd5 Rd1+ 67. Kc5 g1=Q+ 68. Kb4 Qgb6+ 69. Kc3 Qd3#) (60... h1=Q+ 61. Kc7 f3 62. Bxg3 Kxg3 63. Kd7 f2 64. Ke6 f1=Q 65. Ke5 Qf4+ 66. Ke6 Qc6+ 67. Ke7 Qff6#) 61. Kd5 f2 (61... h1=R 62. Bc7 f2 63. Bxg3 Kxg3 64. Kd6 f1=Q 65. Ke5 Qb5+ 66. Kd6 Rh6+ 67. Kc7 Qc4+ 68. Kd8 Qf7 69. Kc8 Rh8#) (61... h1=Q 62. Bf8 f2+ 63. Kd4 f1=Q 64. Bd6 Qd1+ 65. Ke5 Qe2+ 66. Kd4 Qc1 67. Bf8 Qcc4#) 62. Kd4 h1=Q (62... h1=B 63. Bc5 g2 64. Kd3 g1=Q 65. Bxf2 Qxf2 66. Kc4 Qe3 67. Kb4 Bd5 68. Kb5 Qd4 69. Ka5 Qc5+ 70. Ka4 Qb6 71. Ka3 Qb3#) 63. Bf8 f1=Q (63... f1=B 64. Ke5 Qh8+ 65. Ke4 g2 66. Kd5 g1=Q 67. Bc5 Qgh1+ 68. Ke6 Qe8+ 69. Be7 Qe4+ 70. Kf6 Q8xe7#) 64. Bc5 Qf4+ (64... Qhg1+ 65. Kd5 Qf5+ 66. Kc6 Qgxc5+ 67. Kb7 Qfc8#) 65. Kd3 Qhf1+ (65... Qd5+ $2 66. Kc2 Qfd2+ 67. Kb1 Q5a2#) 66. Kc2 Q4c1+ 67. Kb3 Qfc4#) 53... g4 54. fxg4 hxg4 {[%cal Bh5g4,Bg4g3,Bg3g2][%mdl 32]} 55. Qb2+ Kg3 56. Qe5 Kf3 57. Kd6 g3 58. Kd5 g2 59. Qe1 Kg4 60. Ke4 Kh3 61. Qd1 {Weighted Error Value: White=0.30/Black=0.37.  Loses game:     	White=1     	Black=1      Missed win:     	---       	Black=1      Mistake:       	White=2     	Black=4      Inaccurate:     	White=5     	Black=2      OK:         	White=13    	Black=13     Best:        	White=7     	---        Strong:       	White=2     	Black=1} 1-0

[Event "45th FIDE Womens Olympiad 2024"]
[Site "Budapest"]
[Date "2024.09.15"]
[Round "5.128"]
[White "Durrfeld, Sofie Bech"]
[Black "Sezdbekova, Aizhan"]
[Result "1/2-1/2"]
[ECO "C25"]
[WhiteElo "1937"]
[BlackElo "1799"]
[Annotator "TA"]
[PlyCount "91"]
[EventDate "2024.09.05"]
[EventType "team-tourn"]
[EventCountry "HUN"]
[SourceTitle "playchess.com"]
[Source "ChessBase"]
[SourceQuality "1"]
[WhiteTeam "Denmark"]
[BlackTeam "Kyrgyzstan"]
[WhiteTeamCountry "DEN"]
[BlackTeamCountry "KGZ"]
[TimeControl "40/5400+30:1800+30"]

{[%evp 9,91,19,31,16,13,9,27,10,12,4,0,0,27,25,20,31,31,21,49,22,40,50,56,39,144,150,197,191,263,270,234,255,433,419,423,258,395,-85,-99,-85,-83,-121,-117,-120,-122,-185,0,0,0,0,0,0,15,0,0,0,0,0,16,0,0,0,16,0,0,0,0,-64,-64,-87,-87,-88,-88,-102,-94,-211,-211,-146,0,-48,0,-155,0,-33]} 1. e4 e5 2. Bc4 Nc6 3. Nc3 g6 4. d3 Bg7 5. Be3 d6 6. a3 Nge7 7. Qd2 Be6 8. Bxe6 {White has an edge.} fxe6 9. h4 {[%cal Bh2h4,Bh4h5][%mdl 32]} Qd7 10. h5 d5 {...d4 would now be deadly.} 11. Bh6 Bxh6 12. Qxh6 O-O-O 13. Nf3 {[%cal Bg1f3,Bf3e5,Be5c6,Bc6a7,Ba7b5][%mdl 32]} gxh5 14. Rxh5 Ng6 15. O-O-O {[%cal Ba1d1,Bd1h1,Bh1h5][%mdl 32]} Rdf8 16. Rdh1 Nf4 ({Black should try} 16... a6 $1 $14) 17. Nxe5 $16 {White is more active.} Qd6 (17... Qe8 $16) 18. Nxc6 $1 $18 (18. Nb5 Qc5 19. Nc3 (19. Nxc6 bxc6 20. Nc3 Nxh5 $17) 19... Nd4 $11 (19... Nxh5 $2 20. Qxe6+ Kb8 21. Nd7+ Ka8 22. Nxc5 $18)) 18... Nxh5 (18... Qxc6 {was called for.} 19. exd5 exd5) 19. Nxa7+ {A dynamic duo of knights. Black is weak on the light squares} Kb8 20. Rxh5 Qb6 (20... Rxf2 21. Kb1 Qf8 22. Qxf8+ Rfxf8) 21. Nab5 Rxf2 22. Rh1 {Inhibits Rf1+. Hoping for Qg7.} (22. exd5 Rf1+ 23. Nd1 Qxb5 $16) 22... Rhf8 (22... Rxg2 $142 23. d4 (23. exd5 $2 Qf2 $19) 23... Qc6) 23. Nd1 $2 (23. exd5 Rf1+ 24. Rxf1 Rxf1+ 25. Nd1 Qxb5 26. Qxe6 Qc5 $14) (23. d4 $18) 23... R2f6 $17 (23... Qxb5 24. Nxf2 Rxf2 25. Qxh7 (25. Qxe6 Qa4 $16) 25... Rxg2 26. Qh3 $16) 24. Qxh7 {And now a4 would win.} Qxb5 25. g4 d4 26. Qg7 {Repels Qg5+} Qe8 $1 27. g5 (27. Rh2 $17) 27... Rg6 $2 (27... Rf1 $1 $19 {[%cal Rf1h1]} 28. Qh6 (28. Rxf1 $2 Rxf1 29. Qh6 Qg8 $19) 28... Rxh1 29. Qxh1 Rg8) 28. Qxd4 $11 Rxg5 29. Nc3 Rg2 30. Kb1 Rgf2 31. Qc5 Rf1+ 32. Rxf1 Rxf1+ {[%mdl 4096] Endgame. KQR-KQN} 33. Ka2 Qf8 34. Qa5 Qd6 35. Qb5 Rf8 {Repels Qe8+} 36. Na4 b6 {Inhibits Nc5.} 37. Nc3 Kb7 38. e5 (38. b4 $11) 38... Qd4 $15 39. Qb4 Qxb4 (39... Qxe5 $2 40. Qxf8 Qh5 41. Qe7 $18) 40. axb4 $17 {KR-KN} Rf5 41. d4 {[#]} Rf4 $1 {[%mdl 1024] Black has strong compensation.} 42. Nb5 {[#]} (42. d5 $17) 42... Kc6 $1 $19 43. Na7+ Kb7 (43... Kd5 $17 44. Nb5 Rxd4) 44. Nb5 $15 Kc6 ({Better is} 44... c5 $15 45. dxc5 (45. bxc5 bxc5 46. Kb3 Kc6 $15) 45... Rxb4 46. Nd6+ Kc6) 45. Na7+ $1 $17 Kb7 (45... Kd5 $17 46. c3 c5 47. dxc5 bxc5) 46. Nb5 {A wild game.   Weighted Error Value: White=0.27 (precise) /Black=0.37.  Missed win:     	White=1     	Black=1      Mistake:       	White=3     	Black=8      Inaccurate:     	White=3     	Black=2      OK:         	White=8     	Black=8      Best:        	White=8     	Black=3      Strong:       	White=2     	Black=3} 1/2-1/2

[Event "45th FIDE Womens Olympiad 2024"]
[Site "Budapest"]
[Date "2024.09.15"]
[Round "5.129"]
[White "Granados Ortiz, Maria Jose"]
[Black "Maksimovic, Masa"]
[Result "0-1"]
[ECO "B56"]
[WhiteElo "1935"]
[BlackElo "2093"]
[Annotator "TA"]
[PlyCount "148"]
[EventDate "2024.09.05"]
[EventType "team-tourn"]
[EventCountry "HUN"]
[SourceTitle "playchess.com"]
[Source "ChessBase"]
[SourceQuality "1"]
[WhiteTeam "Nicaragua"]
[BlackTeam "Bosnia & Herzegovina"]
[WhiteTeamCountry "NCA"]
[BlackTeamCountry "BIH"]
[TimeControl "40/5400+30:1800+30"]

{[%evp 15,148,27,39,0,0,-10,-6,-6,-8,-4,-1,-10,-4,0,0,0,0,-2,-8,-20,-13,-22,0,0,-10,-3,0,0,0,0,0,-10,0,0,0,-5,-4,-4,0,0,0,-5,3,-4,18,-4,-4,-7,-7,-6,37,15,70,6,20,23,42,0,0,-11,0,-49,-49,-106,-91,-199,-175,-245,-253,-397,-382,-468,-462,-462,-412,-798,-783,-669,-227,-359,-354,-363,-364,-362,-358,-702,-268,-4145,-4145,-2020,-2020,-4145,-4145,-4145,-4145,-4145,-4145,-4145,-4145,-4145,-4145,-4145,-4145,-4145,-4141,-4141,-4141,-29966,-29967,-11873,-4141,-29989,-29990,-29991,-29992,-29992,-29992,-29992,-29992,-29992,-29993,-29994,-29994,-29995,-29992,-29992,-29993,-29993,-4145,-29994,-29995,-29995,-29996,-29996,-4149]} 1. e4 c5 2. Nf3 Nc6 3. d4 cxd4 4. Nxd4 Nf6 5. Nc3 d6 6. Be3 e5 7. Nb3 Be7 8. f3 Be6 9. Qd2 (9. Qe2 $14) 9... d5 $11 10. exd5 Nxd5 11. Nxd5 {The position is equal.} Qxd5 12. Qxd5 Bxd5 13. O-O-O O-O-O 14. Bb5 a6 15. Be2 Kc7 16. c4 Be6 17. Rxd8 (17. Nc5 {keeps more tension.} Bf5 18. Na4 Kb8 19. Nc3) 17... Rxd8 18. Rd1 f5 19. Rxd8 Bxd8 20. Nc5 Bc8 21. Na4 Nd4 22. Bd3 g6 23. Nc3 Kd6 24. b4 Be6 25. Ne2 Nc6 26. a3 Bf6 27. Kc2 h5 28. Bc5+ Kd7 29. Be3 a5 30. Bd2 axb4 31. axb4 Be7 32. c5 Nb8 33. Bb5+ Kd8 ({Better is} 33... Nc6 $11) 34. Kd3 (34. Bc3 $14) 34... Bf6 35. Bc3 Ke7 36. Kd2 Bd5 37. Bd3 h4 38. Kc2 (38. Ke3 $11 {might be stronger.}) 38... h3 $15 39. gxh3 {Black continues to play with concentration.} (39. g4 $1 $15) 39... Bxf3 $17 40. Ng1 (40. h4 $17 {was worth a try.}) 40... Bd5 $19 41. Be2 (41. Ne2 $142) 41... e4 42. Bxf6+ (42. Bb5 $142) 42... Kxf6 {[%mdl 4096] Endgame. KBN-KBN} 43. Kc3 Ke5 44. h4 f4 45. b5 (45. h5 $142 gxh5 46. Bxh5) 45... f3 46. Bf1 e3 $2 (46... Nd7 47. c6 bxc6 48. bxc6 Bxc6) 47. Kd3 (47. h5 {was the only defense.} gxh5 48. Kd3) 47... e2 48. Nxe2 fxe2 49. Bxe2 Nd7 50. c6 $2 (50. Ke3) 50... bxc6 51. bxc6 $2 (51. Ke3) 51... Bxc6 52. Ke3 Nf6 53. h3 Be4 54. Bc4 Nd5+ 55. Kf2 Kf4 {[#] Hoping for ...Bf3.} 56. Bb5 Nf6 57. Bc4 Bf3 58. Bf7 Ne4+ 59. Ke1 Bh5 {[#] Threatens to win with ...Ke3.} 60. Bd5 Nd6 {( -> ...Ke3)} 61. Kf2 Nf5 62. Bf7 Nxh4 {Strongly threatening ...Bf3.} 63. Bxg6 Nxg6 64. Ke1 Ke3 65. Kf1 Nf4 66. h4 Nd3 67. Kg2 Kf4 68. Kh3 Kf3 69. Kh2 Kg4 70. Kg2 Kxh4 71. Kh2 Bf3 72. Kg1 Kg3 {Black mates.} 73. Kf1 Bg4 74. Kg1 Bh3 {Weighted Error Value: White=0.54/Black=0.21 (precise) .  Mistake:       	White=9     	Black=1      Inaccurate:     	White=1     	Black=1      OK:         	White=15    	Black=13     Best:        	---       	Black=4} 0-1

[Event "45th FIDE Womens Olympiad 2024"]
[Site "Budapest"]
[Date "2024.09.15"]
[Round "5.130"]
[White "Babic, Milana"]
[Black "Martinez Orozco, Cristiana Yorlene"]
[Result "1-0"]
[ECO "A07"]
[WhiteElo "2080"]
[BlackElo "1761"]
[Annotator "NA RC"]
[PlyCount "95"]
[EventDate "2024.09.05"]
[EventType "team-tourn"]
[EventCountry "HUN"]
[SourceTitle "playchess.com"]
[Source "ChessBase"]
[SourceQuality "1"]
[WhiteTeam "Bosnia & Herzegovina"]
[BlackTeam "Nicaragua"]
[WhiteTeamCountry "BIH"]
[BlackTeamCountry "NCA"]
[TimeControl "40/5400+30:1800+30"]

1. Nf3 d5 2. g3 Nf6 3. Bg2 Bg4 4. h3 Bf5 5. O-O c6 6. c4 Nbd7 7. Qb3 Qb6 8. d3 dxc4 9. Qxc4 Be6 10. Qc2 h6 11. e4 Nb8 12. Nc3 g5 13. Be3 Qa5 14. b4 Qd8 15. Nd4 Bg7 16. Nxe6 fxe6 17. Qb3 Qd7 18. Rac1 O-O 19. Rfd1 Kh8 20. d4 Ne8 21. Na4 Nc7 22. b5 b6 23. bxc6 Nxc6 24. Qc3 Na5 25. Nxb6 axb6 26. Qxc7 Qa4 27. e5 Rac8 28. Qxc8 Qxd1+ 29. Rxd1 Rxc8 30. Rb1 Rb8 31. Rb4 Kg8 32. Kf1 Kf8 33. Ke2 Ke8 34. Kd3 Kd7 35. a4 Nc6 36. Rb1 Na5 37. Bd2 Nc6 38. Be4 Rd8 39. Be3 Rb8 40. Rb2 Rd8 41. Rxb6 Nxe5+ 42. dxe5 Bxe5 43. Ke2 Bc7 44. Rb7 Kd6 45. Rb5 Rc8 46. a5 Rb8 47. Rxb8 Bxb8 48. a6 1-0

[Event "45th FIDE Womens Olympiad 2024"]
[Site "Budapest"]
[Date "2024.09.15"]
[Round "5.131"]
[White "Munoz Cortez, Anahi Alexandra"]
[Black "Jacimovic, Sara"]
[Result "1/2-1/2"]
[ECO "C55"]
[WhiteElo "1868"]
[BlackElo "1981"]
[Annotator "TA"]
[PlyCount "94"]
[EventDate "2024.09.05"]
[EventType "team-tourn"]
[EventCountry "HUN"]
[SourceTitle "playchess.com"]
[Source "ChessBase"]
[SourceQuality "1"]
[WhiteTeam "Nicaragua"]
[BlackTeam "Bosnia & Herzegovina"]
[WhiteTeamCountry "NCA"]
[BlackTeamCountry "BIH"]
[TimeControl "40/5400+30:1800+30"]

{[%evp 10,94,31,37,33,42,50,0,61,4,9,-5,-12,0,9,14,13,-22,18,14,60,61,64,62,70,75,58,73,71,67,77,66,79,64,200,206,206,210,220,178,197,194,408,418,416,399,439,439,442,356,537,-8,-17,-15,-16,-50,454,54,69,69,70,25,50,50,52,52,49,45,42,30,34,14,14,14,22,15,15,14,14,0,14,0,15,0,15,0,15]} 1. e4 e5 2. Nf3 Nc6 3. Bc4 Nf6 4. d3 h6 5. Nbd2 d6 6. c3 g5 7. h3 Bg7 8. Nf1 ({Better is} 8. O-O $14) 8... Ne7 (8... d5 $11 9. exd5 Nxd5) 9. g4 (9. Ng3 $14) 9... d5 10. exd5 Nfxd5 11. Ng3 Rf8 12. Qe2 Qd6 13. Qe4 f5 14. gxf5 {Black should prevent h4.} Bxf5 (14... Nb6 $11 {is superior.}) 15. Nxf5 $14 Rxf5 16. h4 gxh4 17. Nxh4 {[%cal Bf3h4,Bh4g6,Bg6e5,Be5f7][%mdl 32]} Rf7 18. Be3 O-O-O 19. O-O-O {[%cal Ba1d1,Bd1g1,Bg1g2][%mdl 32]} (19. Bxa7 b6 (19... Rf4 20. Qg2 $11) 20. Ba6+ Kd7 $17) 19... Kb8 {[%cal Od5e3]} 20. Rdg1 $36 {[%mdl 2048] White has the initiative.} Bf8 21. Ng6 {White is more active.} Rf6 (21... Nxg6 $14 22. Rxg6 Rf6 23. Rxf6 Nxf6) 22. Nxe5 $18 Nxe3 23. fxe3 Rc8 {Black is weak on the light squares} 24. Rg2 a6 25. d4 c5 $2 (25... c6 26. Qg4 Ka8) 26. Rd1 {[#] dxc5 is the strong threat.} Rf5 27. Nf7 Qf6 28. Be6 (28. Ne5 Rc7 29. Kb1 cxd4 $18) 28... cxd4 29. Bxf5 (29. Rxd4 Rf1+ 30. Kd2 Rc6 $18) ({Don't do} 29. exd4 Rf4 30. Qe5+ Rc7 $18) 29... Nxf5 (29... Qxf5 $142 30. Qxf5 (30. Qxd4 Qxf7 31. Kb1 Nc6 $17) 30... Nxf5) 30. Qe5+ $2 (30. Ne5 $18 Qe6 31. exd4) 30... Qxe5 $11 31. Nxe5 Nxe3 32. Rg8 dxc3 {[%mdl 8192]} (32... Nxd1 $15 {stays ahead.} 33. Nd7+ Kc7 34. Nxf8 Ne3 (34... dxc3 35. Kxd1 cxb2 36. Kc2 $11)) 33. Rdg1 $2 (33. Rd3 $18) 33... cxb2+ 34. Kxb2 {[#] Black must now prevent Nd7+.} Ka7 35. Kb3 {aiming for Ng6.} (35. Nd7 {keeps more tension.} Rc2+ 36. Kb3 Be7 37. Re8) 35... Rc5 36. Rxf8 Rxe5 $14 {[%mdl 4096] Endgame. KRR-KRN} 37. Rg7 Rb5+ 38. Kc3 {[%mdl 1024] White has compensation.} Nd5+ 39. Kd4 {Threatens to win with a4.} Nb4 40. a4 Nc6+ {The position is equal.} 41. Kc3 Rb1 42. Rf6 {[%cal Of6h6]} Rh1 43. Kb2 (43. Rxc6 Rc1+ 44. Kb4 Rxc6 $17) 43... Rh2+ 44. Ka3 Rh3+ 45. Kb2 Rh2+ 46. Ka3 Rh3+ 47. Kb2 Rh2+ {Weighted Error Value: White=0.41/Black=0.42.  Loses game:     	---       	Black=1      Missed win:     	White=2     	---        Mistake:       	White=2     	Black=5      Inaccurate:     	White=3     	Black=1      OK:         	White=15    	Black=19     Best:        	White=3     	Black=1} 1/2-1/2

[Event "45th FIDE Womens Olympiad 2024"]
[Site "Budapest"]
[Date "2024.09.15"]
[Round "5.132"]
[White "Mahmutbegovic Smajilbasic, Nadina"]
[Black "Alvarez Gutierrez, Patricia"]
[Result "1/2-1/2"]
[ECO "B15"]
[WhiteElo "1973"]
[BlackElo "1826"]
[Annotator "TA"]
[PlyCount "54"]
[EventDate "2024.09.05"]
[EventType "team-tourn"]
[EventCountry "HUN"]
[SourceTitle "playchess.com"]
[Source "ChessBase"]
[SourceQuality "1"]
[WhiteTeam "Bosnia & Herzegovina"]
[BlackTeam "Nicaragua"]
[WhiteTeamCountry "BIH"]
[BlackTeamCountry "NCA"]
[TimeControl "40/5400+30:1800+30"]

{[%evp 9,54,57,85,26,20,21,35,8,4,0,9,21,56,77,56,54,49,60,72,77,91,89,102,104,129,140,136,125,189,171,281,442,401,408,447,450,425,397,383,383,383,0,393,0,370,0,352]} 1. e4 c6 2. Nc3 d5 3. Nf3 e6 4. d4 Nf6 5. Bd3 Bb4 6. exd5 (6. e5 $16 Nfd7 7. O-O) 6... exd5 $11 7. O-O O-O 8. Ne5 {Prevents Bg4. White is slightly better.} Nbd7 9. Bg5 Bd6 10. Ng4 h5 11. Nxf6+ Nxf6 12. h3 Bc7 13. Ne2 Qd6 14. Bf4 Qe7 15. Re1 Re8 {[#]} 16. Qd2 $1 Qd8 17. Bxc7 Qxc7 18. Qg5 Qb6 (18... Qe7 $16 {was necessary.} 19. Nf4 Qxe1+ 20. Rxe1 Rxe1+ 21. Kh2 Bd7 22. Nxh5 Nxh5) 19. Nf4 $18 Bd7 (19... Ne4 $142 20. c3 (20. Qxh5 Qxd4 21. Qf3 Qxb2 $11) 20... Qd8 21. Qxd8 (21. Qxh5 Qf6 $16) 21... Rxd8 22. Nxh5 Nd6) 20. Nxh5 Nxh5 21. Qxh5 {Qh7+ would kill now.} g6 {[#]} 22. Bxg6 $1 {[%mdl 512]} fxg6 23. Qxg6+ Kh8 24. Qh6+ Kg8 25. Qg6+ Kh8 26. Qh6+ Kg8 27. Qg6+ Kh8 {[%mdl 32768] Weighted Error Value: White=0.81/Black=0.24 (precise) .  Loses game:     	---       	Black=1      Mistake:       	---       	Black=2      Inaccurate:     	White=1     	Black=1      OK:         	White=9     	Black=3      Best:        	White=1     	Black=3      Strong:       	White=1     	---        Brilliant:      	White=1     	---       . An unexpected result.} 1/2-1/2

[Event "45th FIDE Womens Olympiad 2024"]
[Site "Budapest"]
[Date "2024.09.15"]
[Round "5.133"]
[White "Stojkovska, Monika"]
[Black "Serina Arafat"]
[Result "1-0"]
[ECO "D53"]
[WhiteElo "2043"]
[BlackElo "1552"]
[Annotator "TA"]
[PlyCount "75"]
[EventDate "2024.09.05"]
[EventType "team-tourn"]
[EventCountry "HUN"]
[SourceTitle "playchess.com"]
[Source "ChessBase"]
[SourceQuality "1"]
[WhiteTeam "North Macedonia"]
[BlackTeam "Jordan"]
[WhiteTeamCountry "MKD"]
[BlackTeamCountry "JOR"]
[TimeControl "40/5400+30:1800+30"]

{[%evp 11,74,11,27,42,29,29,32,12,22,8,27,25,26,12,48,61,115,-19,-53,-32,94,105,99,98,99,98,122,117,115,120,123,125,141,133,154,114,195,203,478,481,547,160,421,421,475,285,293,289,278,48,77,14,205,0,271,0,170,104,42,-14,-23,-256,1875,1695,29999]} 1. d4 d5 2. c4 e6 3. Nc3 Nf6 4. cxd5 exd5 5. Bg5 Be7 6. e3 b6 7. Bd3 Bb7 8. Qc2 Nbd7 9. Nge2 {[%cal Bg1e2,Be2g3,Bg3f5][%mdl 32] White is slightly better.} a6 10. Ng3 h6 11. Bf4 O-O 12. Nf5 {White wants to play Qd1.} Rc8 13. Qe2 {[%cal Of4h6]} c5 (13... Re8 $14) 14. Bd6 {White is much more active.} (14. Bxh6 $16 gxh6 15. Qf3) 14... Bxd6 $11 15. Nxd6 Rc7 (15... cxd4 $1 $15 {keeps the upper hand.} 16. Nxc8 (16. Nxb7 Qc7 $17) (16. exd4 $2 Rxc3 17. Nxb7 Qc7 $19) 16... Bxc8 (16... dxc3 17. Nd6 $11)) 16. Nxb7 $16 (16. Bxa6 $2 Bxa6 17. Qxa6 cxd4 $19) 16... Rxb7 17. Bxa6 Ra7 18. O-O cxd4 19. exd4 Re8 20. Qd3 Nb8 21. Bb5 Ree7 22. Rfe1 Qd6 23. Qf5 Qd8 {Dodges Qc8. Black is weak on the light squares} (23... g6 $16 24. Qc8+ Kg7) 24. Re5 $18 Ra5 $2 (24... Nbd7 {was called for.}) 25. Rae1 (25. Nxd5 Rxe5 26. Nxf6+ gxf6 $17) 25... Rxe5 26. Rxe5 (26. dxe5 $18 {and the rest is easy.} Qe7 27. Qc8+ (27. exf6 Qxe1+ 28. Bf1 Qe6 $17) 27... Kh7 28. Qxb8 Rxb5 29. Nxb5) 26... Qc7 $2 (26... g6 $16 {might work better.} 27. Qf3 Kg7) 27. h3 Kh8 28. Bd3 (28. Nxd5 Qc1+ 29. Kh2 Nbd7 30. Bxd7 Rxd5 31. Rxd5 Nxd5 32. Qxf7 (32. Qxd5 Qf4+ 33. g3 Qxf2+ 34. Qg2 Qxd4 $18) 32... Qf4+ 33. Qxf4 Nxf4) 28... Qd8 {Repels Re8+} 29. b4 Ra3 30. Nb5 (30. Nxd5 $18 Rxd3 31. Qxd3 Nxd5 32. Qc4) 30... Rxa2 31. g4 $40 {[%mdl 128] White attacks.} (31. Re1 $1 $16 Kg8 32. Rc1) 31... Nc6 $2 (31... Kg8 $11 {and Black stays safe.}) 32. Re1 $2 (32. Nd6 $1 $18 {[%cal Rd6f7]} Nxe5 (32... Qxd6 33. Re8+) 33. dxe5) 32... Nxb4 $2 {[%mdl 8192] [#]} (32... Ra8 $11) 33. Bb1 $2 (33. Nd6 $1 $18 {[%cal Rd6f7]} Kg8 (33... Qxd6 34. Re8+) 34. Re8+ Qxe8 35. Nxe8 Nxe8 36. Bf1) 33... Rb2 $2 {[#]} (33... Ra8 $11) 34. Nd6 $1 {[%mdl 512]} Qf8 $16 (34... Qxd6 35. Re8+) 35. g5 (35. Qf4 $14) 35... hxg5 $11 {Strongly threatening ...Nc6.} ({And not} 35... Qxd6 36. Re8+ (36. gxf6 Rxb1 37. Qxb1 g6 $18) (36. gxf6 Rxb1 37. Qxb1 g6 $18)) 36. Ne8 $2 Nc6 $4 {[%mdl 8192]} ({Inferior is} 36... Nxe8 37. Qh7#) (36... Rxb1 $19 37. Qxb1 Nxe8 38. Rxe8 Qxe8 39. Qxb4 Qe6) 37. Nxf6 $18 {[%csl Gb1,Gf6][%cal Rf5h7]} Rxb1 38. Qh7# {Weighted Error Value: White=0.80/Black=0.83.  Loses game:     	White=1     	Black=4      Missed win:     	White=4     	Black=1      Mistake:       	White=4     	Black=4      Inaccurate:     	White=1     	Black=3      OK:         	White=6     	Black=7      Best:        	White=4     	Black=2} 1-0